bitfinex-derivatives/quotes_ETHF0:USTF0_20250123
["timestamp","ask_amount","ask_price","bid_price","bid_amount"]
[1737674962851,2.27473281,3337.6,3337.3,0.00449088]
[1737674963050,6.25513281,3337.9,3337.3,0.00449088]
[1737674963246,0.28098535,3337.8,3337.7,0.59906]
[1737674963642,3.9804,3337.9,3337.3,0.00449088]
[1737674963854,3.9804,3337.9,3337.8,0.59904]
[1737674964153,4.26136133,3337.9,3337.8,0.59904]
[1737674965653,3.48876133,3337.9,3337.8,0.59904]
[1737674965946,2.27473281,3338.2,3338.0,0.599]
[1737674966151,0.28094203,3338.1,3337.3,4.91209088]
[1737674966347,2.27473281,3337.9,3337.6,0.59907]
[1737674966553,1.09524203,3337.8,3337.6,0.59907]
[1737674966753,1.09524203,3337.8,3337.5,0.59909]
[1737674966754,2.52949203,3337.8,3337.5,0.59909]
[1737674966950,0.28094203,3337.7,3337.4,40.8]
[1737674967255,0.28094203,3337.8,3337.7,0.59906]
[1737674967457,1.09524203,3337.8,3337.7,0.59906]
[1737674967857,0.8143,3337.8,3337.7,0.59906]
[1737674968748,0.8143,3337.8,3337.4,40.8]
[1737674969054,2.27473281,3337.6,3337.3,3.21229088]
[1737674969259,0.28094203,3337.5,3337.3,3.21229088]
[1737674969750,0.8464,3337.4,3337.3,3.21229088]
[1737674971359,0.8464,3337.4,3337.3,0.00449088]
[1737674980065,0.28094203,3337.5,3337.3,0.00449088]
[1737674984363,1.91894203,3337.8,3337.3,0.00449088]
[1737674985959,0.28094203,3337.8,3337.3,0.00449088]
[1737674986180,0.28094203,3337.9,3337.3,0.00449088]
[1737674987060,0.28094203,3338.1,3337.3,0.00449088]
[1737674987262,0.28094203,3338.1,3337.5,3.2078]
[1737674987465,3.2078,3339.2,3337.9,3.2078]
[1737674987661,0.28087525,3339.1,3338.4,3.2078]
[1737674988063,0.28087525,3339.1,3338.5,40.8]
[1737674988771,2.55713279,3339.1,3338.5,40.8]
[1737674988970,0.28087525,3339.0,3338.0,1.6961]
[1737674989264,1.5736,3338.9,3338.0,1.6961]
[1737674989465,2.27625842,3338.8,3338.0,1.6961]
[1737674989671,0.28087525,3338.7,3338.0,1.6961]
[1737674992764,0.28087525,3338.7,3337.9,3.2078]
[1737674998070,0.28087525,3338.7,3338.3,3.2078]
[1737674998376,0.28087525,3338.7,3338.4,0.8249]
[1737674998974,0.80520088,3338.8,3338.4,0.8249]
[1737674998975,1.08607613,3338.8,3338.4,0.8249]
[1737674999568,1.08607613,3338.8,3338.4,1.6588]
[1737675000068,4.29387613,3338.8,3338.4,0.8339]
[1737675000269,0.28087525,3338.7,3338.0,0.8249]
[1737675000474,0.28087525,3338.7,3338.0,1.6354]
[1737675001174,2.275415,3338.6,3337.9,3.2078]
[1737675001367,0.28087525,3338.5,3337.9,3.2078]
[1737675001574,3.2078,3338.4,3337.9,3.2078]
[1737675001766,0.28087525,3338.3,3337.9,3.2078]
[1737675002170,1.6467,3338.2,3337.9,3.2078]
[1737675003672,1.92760673,3338.2,3337.9,3.2078]
[1737675005278,0.28090673,3338.2,3337.9,3.2078]
[1737675005479,0.28090673,3338.6,3337.9,3.2078]
[1737675005678,1.08610761,3338.8,3337.9,3.2078]
[1737675006375,2.275415,3338.7,3337.9,3.2078]
[1737675006575,0.28090673,3338.6,3337.9,3.2078]
[1737675006785,0.28090673,3338.6,3338.3,3.2078]
[1737675007077,8.8e-07,3338.8,3338.7,0.59888]
[1737675009380,0.59897,3338.3,3337.8,3.2078]
[1737675009583,2.874405,3338.1,3337.7,0.59905]
[1737675009883,0.28090673,3338.0,3337.4,3.9976]
[1737675010077,4.8455,3338.2,3337.4,3.9976]
[1737675010078,0.28090673,3338.1,3337.5,42.29773]
[1737675010384,0.28090673,3338.1,3338.0,0.59901]
[1737675011682,0.87989673,3338.1,3337.6,0.59908]
[1737675011884,0.87989673,3338.1,3337.5,40.8]
[1737675012079,2.275415,3338.0,3337.4,3.9976]
[1737675012386,3.80685,3337.8,3337.4,0.5991]
[1737675012576,0.28090673,3337.7,3337.4,0.5991]
[1737675012779,0.28090673,3337.7,3337.3,0.00449088]
[1737675012780,2.55632173,3337.7,3337.3,0.00449088]
[1737675013084,2.874525,3337.4,3337.3,0.00449088]
[1737675013284,6.36323173,3337.4,3337.3,0.00449088]
[1737675013886,0.5992,3337.0,3336.5,0.59927]
[1737675014087,3.80701,3336.9,3336.4,0.59928]
[1737675014281,0.28090673,3336.8,3336.1,44.0078]
[1737675014691,0.28090673,3336.8,3336.2,0.59933]
[1737675014883,0.28090673,3336.8,3336.6,0.59925]
[1737675015080,0.28539761,3336.8,3336.6,0.59925]
[1737675015282,0.28539761,3336.8,3336.5,0.59926]
[1737675015982,0.28539761,3336.8,3336.1,44.0078]
[1737675016178,0.28539761,3336.8,3336.5,0.59927]
[1737675016383,0.28539761,3336.8,3336.5,0.59926]
[1737675016588,0.28539761,3336.8,3336.7,0.59924]
[1737675016789,0.28539761,3336.8,3336.6,0.59925]
[1737675016988,0.88462761,3336.8,3336.3,0.59931]
[1737675017187,2.275415,3336.7,3336.3,0.59931]
[1737675017383,0.28090673,3336.6,3336.1,3.2078]
[1737675017583,0.28090673,3336.6,3336.0,1.43596]
[1737675017584,3.2078,3336.3,3336.0,1.43596]
[1737675017785,3.2078,3336.3,3336.0,0.8366]
[1737675017979,0.28110295,3336.2,3335.8,0.8034]
[1737675018291,3.2078,3336.3,3335.4,0.8433]
[1737675018587,3.2078,3335.9,3335.5,0.59944]
[1737675018984,2.275415,3335.8,3335.2,0.8006]
[1737675019183,3.103715,3335.8,3335.2,0.8006]
[1737675019387,0.59942,3335.7,3335.2,0.8006]
[1737675019589,0.88057365,3335.7,3335.2,1.40011]
[1737675019786,0.28115365,3335.7,3335.2,1.40011]
[1737675019988,0.28115365,3335.7,3335.2,0.8006]
[1737675020187,3.103715,3335.8,3335.2,0.8006]
[1737675020378,3.103715,3335.8,3335.0,40.8]
[1737675020581,0.59943,3335.7,3335.2,0.5995]
[1737675020998,0.59944,3335.6,3335.1,0.59952]
[1737675021191,2.275415,3335.3,3335.0,40.8]
[1737675021393,2.275415,3335.3,3334.0,4.7999]
[1737675021688,4.7989,3335.5,3334.3,0.59966]
[1737675021689,5.483215,3334.7,3334.3,0.59966]
[1737675022086,5.483215,3334.7,3334.0,4.7999]
[1737675022288,0.86,3334.6,3334.2,0.59968]
[1737675022489,0.86,3334.6,3334.0,1.5921]
[1737675022490,0.86,3334.6,3334.3,0.59965]
[1737675022689,0.86,3334.6,3334.4,0.59964]
[1737675022889,3.9963,3334.7,3334.4,0.59964]
[1737675023087,0.00449789,3335.0,3334.9,0.59956]
[1737675024297,0.00449789,3335.0,3334.8,1.79897]
[1737675024503,0.59956,3334.9,3334.8,1.1994]
[1737675025295,5.0,3334.9,3334.0,0.8146]
[1737675025495,3.2078,3334.2,3334.0,1.41432]
[1737675025791,3.2078,3334.2,3334.0,0.8146]
[1737675026497,3.2078,3334.2,3334.1,0.59971]
[1737675026997,3.2078,3334.2,3334.0,2.0143]
[1737675026998,3.2078,3334.2,3334.0,1.79942]
[1737675027505,3.2078,3334.2,3334.0,1.1997]
[1737675028099,3.2108,3334.2,3334.0,1.79942]
[1737675028300,3.2108,3334.2,3334.0,2.54922]
[1737675028599,3.2108,3334.2,3334.0,1.9495]
[1737675028794,0.003,3334.2,3334.1,0.59971]
[1737675029300,3.2108,3334.2,3334.1,0.59971]
[1737675029602,0.003,3334.2,3334.1,0.59971]
[1737675030196,0.003,3334.2,3334.1,3.80751]
[1737675030501,0.003,3334.2,3334.1,5.39611]
[1737675030897,0.003,3334.2,3334.1,46.19611]
[1737675033589,0.003,3334.2,3334.1,42.98831]
[1737675033796,0.003,3334.2,3334.1,42.19031]
[1737675033996,0.003,3334.2,3334.1,1.39031]
[1737675034196,0.003,3334.2,3334.0,1.9495]
[1737675034698,0.003,3334.2,3334.1,0.59971]
[1737675035099,0.003,3334.2,3334.1,41.39971]
[1737675035302,0.003,3334.2,3334.1,0.59971]
[1737675037106,0.003,3334.2,3334.0,2.54921]
[1737675037400,0.003,3334.2,3334.0,1.9495]
[1737675037599,0.59971,3334.1,3334.0,1.9495]
[1737675037799,0.801,3334.2,3334.0,1.9495]
[1737675037996,1.4007,3334.2,3334.0,1.9495]
[1737675038195,0.003,3334.2,3334.0,1.9495]
[1737675038401,0.6027,3334.2,3334.0,1.9495]
[1737675038602,0.003,3334.2,3334.0,1.9495]
[1737675039201,0.59971,3334.1,3334.0,1.9495]
[1737675042403,0.59971,3334.1,3333.2,0.59987]
[1737675042608,2.275415,3333.3,3333.0,4.0508]
[1737675042809,2.275415,3333.3,3333.2,0.59987]
[1737675045110,5.483215,3333.3,3333.1,2.13878]
[1737675045308,5.483215,3333.3,3333.2,0.59987]
[1737675045509,5.483215,3333.3,3333.2,1.41847]
[1737675045704,2.275415,3333.6,3333.2,41.6186]
[1737675045909,2.275415,3333.6,3333.5,0.59981]
[1737675046416,3.2078,3333.7,3333.6,0.5998]
[1737675047302,5.483215,3333.7,3333.6,0.5998]
[1737675047502,5.76455157,3333.7,3333.4,0.59982]
[1737675047810,2.275415,3333.5,3333.4,0.59982]
[1737675049107,2.55675244,3333.5,3333.4,0.59982]
[1737675050207,2.275415,3333.5,3333.4,0.59982]
[1737675050709,3.2078,3334.3,3334.1,0.59971]
[1737675051016,2.275415,3334.9,3334.8,0.59958]
[1737675051213,2.55663731,3334.9,3334.8,0.59958]
[1737675051411,2.275415,3334.9,3334.8,0.59958]
[1737675051719,0.00449789,3335.0,3334.9,0.59956]
[1737675051916,3.2078,3335.6,3335.5,0.59946]
[1737675052209,3.2078,3336.5,3335.2,5.483215]
[1737675052420,0.28111689,3336.4,3336.3,0.59931]
[1737675052612,2.275415,3336.6,3336.5,0.59928]
[1737675052808,2.55648476,3336.6,3336.5,0.59928]
[1737675053116,2.275415,3336.6,3336.5,0.59928]
[1737675053717,2.93339882,3336.8,3336.5,0.59928]
[1737675054013,2.93339882,3336.8,3336.5,0.59926]
[1737675054810,2.93339882,3336.8,3336.2,0.00449789]
[1737675055113,2.93339882,3336.4,3336.2,0.00449789]
[1737675056308,3.53269882,3336.4,3336.2,0.00449789]
[1737675056513,3.2078,3336.3,3336.2,0.00449789]
[1737675057213,2.93339882,3336.8,3336.4,0.59928]
[1737675057411,2.93339882,3336.8,3336.5,0.59927]
[1737675057609,0.03,3336.4,3336.3,0.59931]
[1737675060715,0.03,3336.4,3336.3,1.1989]
[1737675061310,3.56268882,3336.4,3336.3,1.1989]
[1737675061809,2.96339882,3336.4,3336.3,1.1989]
[1737675062207,0.03,3336.4,3336.3,1.79821]
[1737675062818,0.03,3336.4,3336.3,2.65731]
[1737675064210,0.03,3336.4,3336.3,3.50941]
[1737675064713,0.00449789,3336.9,3336.8,0.59922]
[1737675065408,0.00449789,3336.9,3336.8,44.60702]
[1737675065814,0.00449789,3336.9,3336.8,44.94552]
[1737675067618,0.00449789,3336.9,3336.8,0.93772]
[1737675068223,0.60369789,3336.9,3336.8,0.3385]
[1737675068915,0.00449789,3336.9,3336.8,0.3385]
[1737675069123,0.00449789,3336.9,3336.8,0.93772]
[1737675069322,0.00449789,3336.9,3336.8,0.3385]
[1737675070213,0.00449789,3336.9,3336.8,0.93772]
[1737675070622,0.00449789,3336.9,3336.8,0.3385]
[1737675071016,2.53709671,3336.9,3336.8,0.3385]
[1737675071215,3.13629671,3336.9,3336.8,0.3385]
[1737675071409,7.53709671,3336.9,3336.3,1.1989]
[1737675071613,6.14119882,3336.4,3336.3,1.1989]
[1737675071824,6.74048882,3336.4,3336.3,1.1989]
[1737675072020,6.14119882,3336.4,3335.2,44.8629]
[1737675072217,3.80721,3335.8,3335.2,44.8629]
[1737675072527,3.2078,3335.8,3335.4,0.59947]
[1737675072719,3.2078,3335.8,3335.2,44.8629]
[1737675073017,3.2078,3335.8,3335.5,0.59945]
[1737675073218,3.80721,3335.8,3335.5,0.2931]
[1737675073430,3.2078,3335.8,3335.5,0.2931]
[1737675073721,3.2078,3335.8,3335.5,0.89255]
[1737675073922,3.2078,3335.8,3335.5,0.2931]
[1737675074129,3.2078,3336.3,3336.2,0.59933]
[1737675075220,3.2078,3336.3,3336.0,0.59935]
[1737675075416,3.2078,3336.3,3335.9,0.59937]
[1737675075623,3.80711,3336.3,3335.9,0.59937]
[1737675076018,3.2078,3336.3,3335.9,0.59937]
[1737675076222,3.2078,3336.3,3336.0,0.59937]
[1737675076524,3.2078,3336.3,3336.1,0.59934]
[1737675076831,3.2078,3336.3,3336.2,0.59933]
[1737675077028,2.93789671,3336.7,3335.7,2.30563]
[1737675077029,6.14569671,3336.7,3335.7,2.30563]
[1737675077326,6.14569671,3336.7,3336.3,0.5993]
[1737675077520,6.14569671,3336.7,3336.4,0.59928]
[1737675077721,6.14569671,3336.7,3336.4,41.39928]
[1737675078020,6.14569671,3336.7,3336.4,0.59928]
[1737675078423,0.59927,3336.6,3336.1,0.59934]
[1737675078617,0.28109243,3336.6,3335.8,40.8]
[1737675078922,6.74493671,3336.7,3336.2,0.59932]
[1737675079124,0.28109533,3336.6,3336.2,0.59932]
[1737675079427,0.28109533,3336.6,3335.8,40.8]
[1737675079628,0.28109533,3336.6,3336.3,0.5993]
[1737675079826,0.28109533,3336.6,3335.8,40.8]
[1737675080217,0.28109533,3336.6,3336.5,0.59928]
[1737675080428,0.28109533,3336.6,3336.4,0.59928]
[1737675081129,0.28109533,3336.6,3336.5,0.59928]
[1737675082128,0.28109533,3336.6,3336.1,3.2078]
[1737675082330,0.28109533,3336.6,3336.4,0.59928]
[1737675082634,0.28109533,3336.6,3336.5,0.59928]
[1737675083431,0.28109533,3336.6,3336.0,0.804]
[1737675083627,0.28109533,3336.6,3336.4,0.59929]
[1737675084027,0.28109533,3336.6,3336.0,0.804]
[1737675084223,2.27833535,3336.4,3335.7,3.2078]
[1737675084533,2.87769535,3336.1,3335.8,0.5994]
[1737675084735,0.28109533,3336.0,3335.8,0.5994]
[1737675084927,0.28109533,3336.0,3335.4,0.8464]
[1737675084928,0.28109533,3336.0,3335.7,0.59941]
[1737675085435,0.28109533,3336.0,3335.7,0.5994]
[1737675085737,0.59938,3335.9,3335.6,0.59943]
[1737675085933,3.2078,3335.9,3335.6,0.59943]
[1737675086229,0.28109533,3335.8,3335.4,0.8464]
[1737675086435,0.28109533,3335.8,3335.6,0.59943]
[1737675086931,0.88049533,3335.8,3335.5,0.89255]
[1737675087233,0.59944,3335.6,3335.5,0.2931]
[1737675087436,0.88051533,3335.7,3335.5,0.2931]
[1737675087639,0.28109533,3335.7,3335.5,0.2931]
[1737675087844,0.59944,3335.6,3335.5,0.2931]
[1737675089039,0.28109533,3335.7,3335.5,0.2931]
[1737675089246,0.88052533,3335.7,3335.5,0.2931]
[1737675089543,0.59944,3335.6,3335.5,0.2931]
[1737675089739,0.28109533,3335.7,3335.5,0.2931]
[1737675089950,0.28109533,3335.7,3335.5,0.89254]
[1737675090245,0.28109533,3335.7,3335.6,0.59944]
[1737675090434,0.28109533,3335.8,3335.6,0.59944]
[1737675090748,3.2078,3335.9,3335.8,0.5994]
[1737675090939,3.4889245,3335.9,3335.8,0.5994]
[1737675091139,0.59945,3335.6,3335.2,0.60399789]
[1737675091344,0.59946,3335.5,3335.2,0.60399789]
[1737675091547,0.8805845,3335.5,3335.2,0.00449789]
[1737675091747,3.2078,3335.4,3335.2,0.60400789]
[1737675092047,0.2811245,3335.3,3335.2,0.60400789]
[1737675092442,2.93466364,3335.6,3335.4,0.59947]
[1737675092645,0.28116493,3335.5,3335.3,0.59949]
[1737675092847,0.28116493,3335.5,3335.3,0.59948]
[1737675093744,0.28116493,3335.5,3335.2,0.00449789]
[1737675094043,0.28116493,3335.5,3335.4,0.59947]
[1737675094239,0.28116493,3335.7,3335.4,0.59947]
[1737675094445,0.28116493,3335.7,3335.2,0.00449789]
[1737675094642,1.6711,3336.1,3335.3,1.49873]
[1737675094643,0.7992,3336.1,3335.3,1.49873]
[1737675094841,1.08032184,3336.1,3336.0,0.59937]
[1737675095035,1.08032184,3336.1,3335.4,1.6572]
[1737675095237,1.08032184,3336.1,3336.0,0.59937]
[1737675095439,1.08032184,3336.1,3335.4,1.6572]
[1737675095850,3.2078,3335.7,3335.5,0.59945]
[1737675096046,0.28115161,3335.6,3335.4,0.8113]
[1737675096248,0.28115161,3335.6,3335.4,1.41077]
[1737675096547,0.88060161,3335.6,3335.2,0.60398789]
[1737675096747,0.28115161,3335.6,3335.3,0.59948]
[1737675096953,0.28115161,3335.6,3335.4,0.59947]
[1737675098150,0.28115161,3335.6,3335.5,0.59946]
[1737675099047,4.007,3336.1,3335.3,3.2078]
[1737675099355,0.28112355,3336.0,3335.9,0.59938]
[1737675104257,3.2078,3336.1,3336.0,0.59937]
[1737675104453,3.48888905,3336.1,3336.0,0.59937]
[1737675105152,3.2078,3336.1,3336.0,0.59937]
[1737675107457,3.21229789,3336.7,3336.6,0.59926]
[1737675107652,3.49335682,3336.7,3336.6,0.59926]
[1737675109954,3.49335682,3336.7,3336.6,0.89616]
[1737675112451,3.49335682,3336.7,3335.2,3.21229789]
[1737675112655,2.27814419,3335.7,3335.5,0.8152]
[1737675112953,0.28113046,3335.6,3335.5,0.8152]
[1737675113653,0.59946,3335.5,3335.2,0.00449789]
[1737675113853,2.27814419,3335.4,3335.2,0.00449789]
[1737675114161,0.28113046,3335.3,3335.2,0.00449789]
[1737675114360,0.28113046,3335.3,3335.2,0.60400789]
[1737675114658,0.28113046,3335.3,3335.2,0.00449789]
[1737675114851,0.28113046,3335.3,3335.2,0.60400789]
[1737675115659,0.28113046,3335.3,3335.2,0.00449789]
[1737675115860,0.28113046,3335.4,3335.2,0.60399789]
[1737675117155,3.48893046,3335.4,3335.2,0.00449789]
[1737675117353,0.28113046,3335.3,3335.2,0.00449789]
[1737675118659,0.28113046,3335.3,3335.2,0.60400789]
[1737675120260,3.2078,3335.8,3335.7,0.59942]
[1737675120456,3.48894561,3335.8,3335.7,0.59942]
[1737675120863,3.48894561,3335.8,3335.7,41.39942]
[1737675121358,0.28114561,3335.8,3335.7,41.39942]
[1737675121959,0.28114561,3335.8,3335.2,3.21229789]
[1737675122157,3.5353335,3335.5,3335.2,3.21229789]
[1737675122352,0.28114561,3335.4,3335.2,3.21229789]
[1737675122565,3.2078,3335.3,3335.2,0.00449789]
[1737675122761,3.48894561,3335.3,3335.2,0.00449789]
[1737675123357,3.48894561,3335.3,3335.2,0.60400789]
[1737675123661,0.28114561,3335.3,3335.2,0.00449789]
[1737675124463,0.28114561,3335.3,3335.2,0.60400789]
[1737675125066,3.48894561,3335.3,3335.2,0.60400789]
[1737675125455,3.48894561,3335.3,3335.2,0.00449789]
[1737675125865,3.48894561,3335.3,3335.2,0.60400789]
[1737675129271,0.28114561,3335.3,3335.2,0.60400789]
[1737675129471,0.28114561,3335.4,3335.3,0.59949]
[1737675129971,0.28114561,3335.4,3335.2,0.60399789]
[1737675130174,0.28114561,3335.4,3335.3,0.59949]
[1737675130470,0.28114561,3335.4,3335.2,0.60400789]
[1737675131467,0.28114561,3335.4,3335.2,0.00449789]
[1737675132674,0.28114561,3335.4,3335.2,0.60399789]
[1737675133273,3.2078,3335.3,3335.2,0.00449789]
[1737675133469,3.48894561,3335.3,3335.2,0.00449789]
[1737675133970,3.48894561,3335.3,3335.2,0.60400789]
[1737675134771,3.48894561,3335.3,3335.2,0.00449789]
[1737675135375,3.48894561,3335.3,3335.2,0.60400789]
[1737675135872,3.48894561,3335.3,3335.2,0.00449789]
[1737675136263,4.08843561,3335.3,3335.2,0.00449789]
[1737675137162,8.48894561,3335.3,3334.2,0.8243]
[1737675137368,3.5355535,3334.3,3333.9,3.80753]
[1737675137563,0.28126686,3334.2,3333.9,3.2078]
[1737675137768,2.28177478,3334.1,3333.9,0.59974]
[1737675137976,2.28177478,3334.1,3333.7,40.8]
[1737675137977,2.28177478,3334.1,3334.0,0.59972]
[1737675138168,2.56305097,3334.1,3334.0,0.59972]
[1737675138471,2.28177478,3334.1,3334.0,0.59972]
[1737675138678,0.00449789,3334.4,3333.7,40.8]
[1737675138975,2.28627267,3334.4,3334.3,0.59967]
[1737675139371,0.00449789,3334.4,3334.3,0.59967]
[1737675139570,0.00449789,3334.4,3334.3,41.39967]
[1737675139976,3.2078,3334.7,3334.3,40.8]
[1737675140171,2.28177478,3335.0,3334.3,40.8]
[1737675140376,0.28121473,3334.9,3334.8,0.59958]
[1737675143278,0.28121473,3334.9,3334.8,1.43318]
[1737675146876,0.28121473,3334.9,3334.8,0.59958]
[1737675147178,0.28121473,3334.9,3334.7,3.2078]
[1737675147373,0.59959,3334.8,3334.6,0.5996]
[1737675147572,2.28177478,3334.7,3334.6,0.5996]
[1737675147773,2.56298951,3334.7,3334.6,0.5996]
[1737675148077,2.56298951,3334.7,3334.6,0.59962]
[1737675148577,2.56298951,3334.7,3334.6,0.36198171]
[1737675151076,2.56298951,3334.7,3334.5,0.60411789]
[1737675151284,2.56298951,3334.7,3334.5,0.00449789]
[1737675151285,4.08863473,3334.6,3334.5,0.00449789]
[1737675153382,3.48901473,3334.6,3334.5,0.00449789]
[1737675153880,4.08863473,3334.6,3334.5,0.00449789]
[1737675154275,3.48901473,3334.6,3334.5,0.00449789]
[1737675154479,3.48901473,3334.6,3334.5,0.60412789]
[1737675155074,3.48901473,3334.6,3334.5,41.40412789]
[1737675155271,3.48901473,3334.6,3334.5,0.60412789]
[1737675156276,0.28121473,3334.6,3334.5,0.60412789]
[1737675156877,0.28121473,3334.6,3334.5,0.00449789]
[1737675157084,0.88083473,3334.6,3334.5,0.00449789]
[1737675157583,0.28121473,3334.6,3334.5,0.00449789]
[1737675158577,0.88083473,3334.6,3334.5,0.00449789]
[1737675158784,0.88083473,3334.6,3334.5,0.0027438]
[1737675159282,0.59972,3334.1,3333.7,2.21696]
[1737675159478,3.2078,3334.1,3333.7,1.40456]
[1737675159679,1.08091473,3334.0,3333.7,1.40456]
[1737675159985,1.08091473,3334.0,3333.9,0.59974]
[1737675159986,0.28121473,3334.0,3333.9,0.59974]
[1737675160181,0.28121473,3334.4,3333.7,0.8048]
[1737675160480,0.28121473,3334.4,3334.2,0.59968]
[1737675160681,0.28121473,3334.4,3334.3,0.59967]
[1737675161582,0.28121473,3334.4,3334.0,0.8207]
[1737675161786,0.88087473,3334.4,3334.1,0.5997]
[1737675161982,0.28121473,3334.4,3334.1,0.5997]
[1737675162186,0.28121473,3334.4,3334.0,0.8207]
[1737675162386,0.28121473,3334.4,3334.1,0.59971]
[1737675162886,0.88086473,3334.4,3334.1,0.59971]
[1737675163384,2.28177478,3334.2,3333.9,0.59973]
[1737675163585,0.28121473,3334.1,3333.9,0.59973]
[1737675163784,0.28121473,3334.1,3333.7,0.8048]
[1737675164085,0.28121473,3334.4,3334.3,0.59967]
[1737675164383,0.28121473,3334.4,3334.2,0.59967]
[1737675164585,0.28121473,3334.4,3334.3,0.59967]
[1737675164783,0.28121473,3334.4,3333.8,1.49941]
[1737675164990,0.28121473,3334.4,3334.3,0.59967]
[1737675165484,0.28121473,3334.4,3334.2,0.59968]
[1737675165883,0.28121473,3334.4,3333.8,3.2078]
[1737675166086,0.28121473,3334.4,3334.3,0.59967]
[1737675166283,0.28121473,3334.4,3334.1,0.59969]
[1737675166884,0.28121473,3334.4,3333.8,3.2078]
[1737675167085,0.28121473,3334.4,3334.2,0.59968]
[1737675168389,0.28121473,3334.4,3333.8,3.2078]
[1737675168585,0.28121473,3334.4,3334.3,0.59967]
[1737675170087,0.28121473,3334.4,3334.3,3.80747]
[1737675170293,0.28121473,3334.8,3334.7,0.5996]
[1737675170495,0.00449789,3335.2,3335.0,0.59953]
[1737675170693,0.00449789,3335.2,3335.1,0.59953]
[1737675170694,0.28568689,3335.2,3335.1,0.59953]
[1737675172896,0.00449789,3335.2,3335.1,0.59953]
[1737675175697,0.60400789,3335.2,3334.8,3.2078]
[1737675175896,2.28177478,3335.1,3334.8,3.80737]
[1737675176091,0.281189,3335.0,3334.8,3.80737]
[1737675176487,0.880739,3335.0,3334.2,4.0191]
[1737675176699,2.28177478,3334.8,3334.2,4.0191]
[1737675176997,0.281189,3334.7,3334.6,0.59962]
[1737675177197,0.880739,3335.0,3334.6,0.59962]
[1737675177596,0.880739,3335.0,3334.2,4.0191]
[1737675178100,0.281189,3335.0,3334.7,0.5996]
[1737675178298,0.281189,3335.0,3334.2,4.0191]
[1737675178501,0.281189,3335.0,3334.9,0.59956]
[1737675178689,0.00449789,3335.2,3335.1,0.59953]
[1737675179292,0.00449789,3335.2,3335.1,44.60733]
[1737675179497,0.281189,3335.6,3335.5,0.59945]
[1737675181894,3.2078,3335.7,3335.6,0.59944]
[1737675182094,0.28113742,3335.7,3335.6,0.59944]
[1737675182301,0.28563531,3335.9,3335.2,2.31637]
[1737675182500,0.28563531,3335.9,3335.8,0.5994]
[1737675184997,0.00449789,3335.9,3335.8,0.5994]
[1737675186599,3.2078,3336.7,3336.4,0.59929]
[1737675186600,0.28109315,3336.5,3336.4,0.59929]
[1737675186904,0.28109315,3336.6,3336.5,0.59928]
[1737675187500,2.56286793,3336.6,3336.0,0.7596]
[1737675187800,5.48957478,3336.3,3336.0,0.59936]
[1737675188104,0.59935,3336.1,3335.6,0.59943]
[1737675188404,3.2078,3335.9,3335.6,0.59943]
[1737675188605,0.28109315,3335.8,3335.6,0.59943]
[1737675188818,0.28109315,3335.8,3335.1,3.2078]
[1737675189221,0.28109315,3335.8,3335.7,0.59942]
[1737675189914,2.3467,3336.2,3335.3,0.8001]
[1737675190118,0.8148,3336.2,3336.1,0.59935]
[1737675190319,0.28111618,3336.2,3336.1,0.59935]
[1737675190718,3.2078,3336.3,3335.7,0.7653]
[1737675190919,3.2078,3336.3,3336.2,0.59933]
[1737675191122,3.48889469,3336.3,3336.2,0.59933]
[1737675192724,5.77066947,3336.3,3336.2,0.59933]
[1737675192926,5.77066947,3336.3,3335.8,0.5994]
[1737675193122,0.28109469,3336.2,3335.7,0.8207]
[1737675193622,0.28109469,3336.2,3336.0,0.59936]
[1737675193822,0.28109469,3336.2,3336.1,0.59935]
[1737675194022,0.28109469,3336.2,3336.0,0.59936]
[1737675194221,0.28109469,3336.2,3335.7,0.8207]
[1737675194425,3.2078,3335.9,3335.3,0.8001]
[1737675194621,1.05459469,3335.8,3335.3,0.8001]
[1737675194819,2.28177478,3335.7,3335.1,3.2078]
[1737675195018,2.88125478,3335.4,3335.1,3.80732]
[1737675195218,0.28109469,3335.3,3335.1,3.80732]
[1737675195720,0.88059469,3335.3,3335.1,3.2078]
[1737675195920,0.59951,3335.2,3334.9,0.59956]
[1737675196123,0.88060469,3335.2,3334.9,0.59955]
[1737675196322,0.7751,3335.1,3334.9,0.59955]
[1737675197330,1.37463,3335.1,3334.8,0.60406789]
[1737675197523,0.7751,3335.1,3334.8,0.60406789]
[1737675198633,1.37463,3335.1,3334.8,0.60406789]
[1737675198833,0.59955,3335.0,3334.8,0.00449789]
[1737675199033,3.80736,3334.9,3334.8,0.00449789]
[1737675199235,4.08845469,3334.9,3334.8,0.00449789]
[1737675199528,3.48889469,3334.9,3333.9,40.8]
[1737675199726,0.28109469,3334.8,3334.0,3.2078]
[1737675199934,0.28109469,3334.8,3334.7,0.5996]
[1737675200821,0.28109469,3335.0,3334.9,0.59956]
[1737675201131,3.05687478,3335.1,3334.7,0.59959]
[1737675201333,0.28109469,3335.0,3334.8,40.8]
[1737675201834,3.2078,3334.9,3334.6,0.59961]
[1737675202032,0.59961,3334.7,3334.4,0.00449789]
[1737675202230,0.88070469,3334.7,3334.4,40.80449789]
[1737675202533,5.48957478,3334.5,3334.4,0.00449789]
[1737675202734,5.77066947,3334.5,3334.4,0.00449789]
[1737675203928,3.48889469,3334.5,3334.4,0.60414789]
[1737675204540,3.2078,3334.9,3334.4,0.00449789]
[1737675204838,4.59817478,3335.1,3334.4,0.00449789]
[1737675204839,3.05687478,3335.1,3334.4,0.00449789]
[1737675205133,0.28120546,3335.0,3334.9,0.59956]
[1737675205433,0.7751,3335.1,3335.0,0.59954]
[1737675205632,0.7751,3335.1,3334.6,0.76]
[1737675205633,3.05687478,3335.1,3334.8,0.59957]
[1737675205837,0.28120546,3335.0,3334.9,0.59956]
[1737675207550,0.28120546,3335.0,3334.8,0.59957]
[1737675207939,0.28120546,3335.0,3334.9,0.59956]
[1737675208535,0.7751,3335.1,3334.7,0.7416]
[1737675208733,0.7751,3335.1,3335.0,0.59954]
[1737675210429,0.28568491,3335.2,3335.1,0.59953]
[1737675210739,0.00449789,3335.2,3335.1,0.59953]